[Event "Early-Titled-Tuesday-Blitz-January-30-2024"]
[Site "Chess.com"]
[Date "2024.01.30"]
[Round "7"]
[White "Oleksandr_Bortnyk"]
[Black "Jospem"]
[Result "0-1"]
[WhiteElo "3113"]
[BlackElo "3073"]
[TimeControl "180+1"]
[EndTime "9:19:35 PST"]
[Termination "Jospem won by resignation"]

1. e4 {[%clk 0:03:00.9]} 1... e5 {[%clk 0:03:00.2]} 2. Nf3 {[%clk 0:02:55.5]}
2... Nf6 {[%clk 0:03:00.1]} 3. Nxe5 {[%clk 0:02:49.2]} 3... d6 {[%clk
0:03:00.2]} 4. Nf3 {[%clk 0:02:49.2]} 4... Nxe4 {[%clk 0:03:00.6]} 5. Nc3 {[%clk
0:02:49.7]} 5... Nf6 {[%clk 0:03:00.8]} 6. d4 {[%clk 0:02:44.7]} 6... Be7 {[%clk
0:02:59.3]} 7. Bd3 {[%clk 0:02:42.3]} 7... O-O {[%clk 0:02:59.6]} 8. O-O {[%clk
0:02:40.6]} 8... Bg4 {[%clk 0:02:59.6]} 9. Bg5 {[%clk 0:02:29.8]} 9... Nbd7
{[%clk 0:02:51.7]} 10. Qe2 {[%clk 0:02:16.5]} 10... Re8 {[%clk 0:02:50]} 11.
Rae1 {[%clk 0:02:16.2]} 11... Bf8 {[%clk 0:02:36.7]} 12. Qd1 {[%clk 0:02:12.8]}
12... Be7 {[%clk 0:02:28.8]} 13. h3 {[%clk 0:02:06.2]} 13... Bh5 {[%clk
0:02:28.7]} 14. g4 {[%clk 0:02:01.7]} 14... Bg6 {[%clk 0:02:28.5]} 15. Bxg6
{[%clk 0:01:59]} 15... hxg6 {[%clk 0:02:28.3]} 16. Qd3 {[%clk 0:01:53.7]} 16...
c6 {[%clk 0:02:03.5]} 17. Re3 {[%clk 0:01:53]} 17... Bf8 {[%clk 0:02:03]} 18.
Rfe1 {[%clk 0:01:48.4]} 18... Rxe3 {[%clk 0:02:02.5]} 19. Rxe3 {[%clk
0:01:48.6]} 19... Qb6 {[%clk 0:02:00.1]} 20. b3 {[%clk 0:01:39.5]} 20... Qa5
{[%clk 0:01:58.1]} 21. a4 {[%clk 0:01:33.8]} 21... Re8 {[%clk 0:01:56.3]} 22.
Kg2 {[%clk 0:01:29.5]} 22... Rxe3 {[%clk 0:01:50.3]} 23. Qxe3 {[%clk 0:01:30.4]}
23... a6 {[%clk 0:01:43.8]} 24. Bf4 {[%clk 0:01:28.1]} 24... Qd8 {[%clk
0:01:22]} 25. Ng5 {[%clk 0:01:17.9]} 25... Nb6 {[%clk 0:01:14.9]} 26. Qg3 {[%clk
0:01:04.9]} 26... Nbd5 {[%clk 0:00:59]} 27. Nxd5 {[%clk 0:01:04.2]} 27... Nxd5
{[%clk 0:00:59.9]} 28. c4 {[%clk 0:00:52.9]} 28... Nf6 {[%clk 0:00:51.6]} 29.
Qh4 {[%clk 0:00:38.6]} 29... Qb6 {[%clk 0:00:51.6]} 30. c5 {[%clk 0:00:31.8]}
30... Qxb3 {[%clk 0:00:51.4]} 31. cxd6 {[%clk 0:00:17.8]} 31... Qd5+ {[%clk
0:00:51.5]} 32. Kg1 {[%clk 0:00:16.2]} 32... Qxd4 {[%clk 0:00:38.3]} 33. Qg3
{[%clk 0:00:16.4]} 33... b5 {[%clk 0:00:33.1]} 34. Be5 {[%clk 0:00:13.3]} 34...
Qd1+ {[%clk 0:00:33.2]} 35. Kh2 {[%clk 0:00:12.6]} 35... bxa4 {[%clk 0:00:29.7]}
36. Bxf6 {[%clk 0:00:10.1]} 36... gxf6 {[%clk 0:00:26.9]} 37. Ne4 {[%clk
0:00:09.3]} 37... Qd4 {[%clk 0:00:21.5]} 38. Qf4 {[%clk 0:00:06.9]} 38... Kg7
{[%clk 0:00:20.5]} 39. Kg3 {[%clk 0:00:05.8]} 39... g5 {[%clk 0:00:17.1]} 40.
Qf5 {[%clk 0:00:02.4]} 40... Bxd6+ {[%clk 0:00:17.7]} 41. Kg2 {[%clk 0:00:03.1]}
41... Bf4 {[%clk 0:00:11.2]} 42. h4 {[%clk 0:00:02.9]} 42... Qe5 {[%clk
0:00:11.8]} 43. hxg5 {[%clk 0:00:02]} 43... Qxf5 {[%clk 0:00:10.2]} 44. gxf5
{[%clk 0:00:02.9]} 44... fxg5 {[%clk 0:00:10.2]} 45. Nc3 {[%clk 0:00:01.8]}
45... a3 {[%clk 0:00:10.5]} 46. Kf3 {[%clk 0:00:02.6]} 46... Be5 {[%clk
0:00:11]} 47. Na2 {[%clk 0:00:03]} 47... Kf6 {[%clk 0:00:11]} 48. Ke4 {[%clk
0:00:03.5]} 48... a5 {[%clk 0:00:10.2]} 49. f3 {[%clk 0:00:03.4]} 49... Bb2
{[%clk 0:00:10.1]} 0-1

[Event "Early-Titled-Tuesday-Blitz-January-30-2024"]
[Site "Chess.com"]
[Date "2024.01.30"]
[Round "7"]
[White "gahryman"]
[Black "RobertoJBM"]
[Result "1-0"]
[WhiteElo "2668"]
[BlackElo "2820"]
[TimeControl "180+1"]
[EndTime "9:19:35 PST"]
[Termination "gahryman won on time"]

1. e4 {[%clk 0:03:00.9]} 1... c6 {[%clk 0:02:59.7]} 2. d4 {[%clk 0:02:57.3]}
2... d5 {[%clk 0:03:00.6]} 3. e5 {[%clk 0:02:57.2]} 3... Bf5 {[%clk 0:02:59.9]}
4. Nf3 {[%clk 0:02:57]} 4... e6 {[%clk 0:02:59.8]} 5. c3 {[%clk 0:02:56.3]} 5...
Nd7 {[%clk 0:02:56.6]} 6. Be2 {[%clk 0:02:51.8]} 6... Ne7 {[%clk 0:02:55.6]} 7.
Na3 {[%clk 0:02:48.6]} 7... c5 {[%clk 0:02:49.7]} 8. dxc5 {[%clk 0:02:36.3]}
8... Nxc5 {[%clk 0:02:45.1]} 9. Nd4 {[%clk 0:02:34.1]} 9... a6 {[%clk
0:02:35.2]} 10. O-O {[%clk 0:02:26.6]} 10... Bg6 {[%clk 0:02:32.3]} 11. Nac2
{[%clk 0:02:21.1]} 11... Nd7 {[%clk 0:02:22.8]} 12. f4 {[%clk 0:02:18.7]} 12...
Nf5 {[%clk 0:02:15.8]} 13. Nxf5 {[%clk 0:02:18.1]} 13... Bxf5 {[%clk 0:02:16.7]}
14. Nd4 {[%clk 0:02:17.5]} 14... Bc5 {[%clk 0:02:14.3]} 15. Kh1 {[%clk
0:02:16.8]} 15... Be4 {[%clk 0:02:08.4]} 16. Be3 {[%clk 0:02:10.7]} 16... O-O
{[%clk 0:02:06.1]} 17. Bd3 {[%clk 0:02:10.9]} 17... Bxd3 {[%clk 0:01:55.1]} 18.
Qxd3 {[%clk 0:02:11.8]} 18... g6 {[%clk 0:01:53.9]} 19. Rae1 {[%clk 0:02:08]}
19... Re8 {[%clk 0:01:52]} 20. Bf2 {[%clk 0:01:54.8]} 20... Rc8 {[%clk
0:01:48.8]} 21. Qh3 {[%clk 0:01:54.7]} 21... Bf8 {[%clk 0:01:38.4]} 22. Nf3
{[%clk 0:01:25.2]} 22... Bg7 {[%clk 0:01:27.8]} 23. Bd4 {[%clk 0:01:24.8]} 23...
b5 {[%clk 0:01:20.5]} 24. g4 {[%clk 0:01:23.8]} 24... f5 {[%clk 0:00:55.2]} 25.
gxf5 {[%clk 0:00:54]} 25... exf5 {[%clk 0:00:52.8]} 26. Ng5 {[%clk 0:00:40.6]}
26... h6 {[%clk 0:00:41.9]} 27. Nf3 {[%clk 0:00:40]} 27... Nf8 {[%clk
0:00:40.7]} 28. Rg1 {[%clk 0:00:38.9]} 28... Rc6 {[%clk 0:00:33.7]} 29. Qg2
{[%clk 0:00:38.2]} 29... Kh7 {[%clk 0:00:27.9]} 30. Rd1 {[%clk 0:00:37.1]} 30...
Qe7 {[%clk 0:00:26.4]} 31. a3 {[%clk 0:00:34]} 31... Qf7 {[%clk 0:00:23.8]} 32.
Rd2 {[%clk 0:00:32]} 32... Ne6 {[%clk 0:00:23.7]} 33. Be3 {[%clk 0:00:28.5]}
33... Rd8 {[%clk 0:00:23.2]} 34. Rgd1 {[%clk 0:00:28.2]} 34... a5 {[%clk
0:00:22.6]} 35. Nd4 {[%clk 0:00:24.8]} 35... Nxd4 {[%clk 0:00:20.7]} 36. Rxd4
{[%clk 0:00:25.1]} 36... Rc4 {[%clk 0:00:20.2]} 37. Rxd5 {[%clk 0:00:24.3]}
37... Rxd5 {[%clk 0:00:20]} 38. Qxd5 {[%clk 0:00:25.2]} 38... Qe8 {[%clk
0:00:18.6]} 39. Qd7 {[%clk 0:00:25.2]} 39... Qa8+ {[%clk 0:00:17.7]} 40. Qd5
{[%clk 0:00:25.4]} 40... Qe8 {[%clk 0:00:17.4]} 41. Bd4 {[%clk 0:00:24.4]} 41...
Rc8 {[%clk 0:00:16.2]} 42. e6 {[%clk 0:00:19.9]} 42... Rd8 {[%clk 0:00:15.8]}
43. Qb7 {[%clk 0:00:20.2]} 43... Qg8 {[%clk 0:00:12.9]} 44. Kg2 {[%clk
0:00:18.3]} 44... Rb8 {[%clk 0:00:11.7]} 45. Qd7 {[%clk 0:00:18]} 45... Rd8
{[%clk 0:00:11.4]} 46. Bxg7 {[%clk 0:00:17.7]} 46... Rxd7 {[%clk 0:00:09.8]} 47.
exd7 {[%clk 0:00:18.6]} 47... Qd8 {[%clk 0:00:08]} 48. Bf6 {[%clk 0:00:18.2]}
48... Qxf6 {[%clk 0:00:08.4]} 49. d8=Q {[%clk 0:00:18.7]} 1-0

[Event "Early-Titled-Tuesday-Blitz-January-30-2024"]
[Site "Chess.com"]
[Date "2024.01.30"]
[Round "7"]
[White "Kotlyar_K"]
[Black "LaPiToB"]
[Result "0-1"]
[WhiteElo "2458"]
[BlackElo "2297"]
[TimeControl "180+1"]
[EndTime "9:19:35 PST"]
[Termination "LaPiToB won by resignation"]

1. e4 {[%clk 0:03:00.9]} 1... c6 {[%clk 0:02:58.5]} 2. Nf3 {[%clk 0:03:01.1]}
2... d5 {[%clk 0:02:58.9]} 3. Nc3 {[%clk 0:03:02]} 3... dxe4 {[%clk 0:02:58.9]}
4. Nxe4 {[%clk 0:03:01]} 4... Nf6 {[%clk 0:02:59.8]} 5. Qe2 {[%clk 0:03:00.8]}
5... Nxe4 {[%clk 0:02:59.2]} 6. Qxe4 {[%clk 0:03:01.7]} 6... Qa5 {[%clk
0:02:59.4]} 7. Bc4 {[%clk 0:02:49.7]} 7... Bf5 {[%clk 0:02:58.7]} 8. Qf4 {[%clk
0:02:42.4]} 8... e6 {[%clk 0:02:57.4]} 9. c3 {[%clk 0:02:37.9]} 9... Nd7 {[%clk
0:02:49.5]} 10. d4 {[%clk 0:02:36.3]} 10... Be7 {[%clk 0:02:49.5]} 11. O-O
{[%clk 0:02:35.7]} 11... O-O {[%clk 0:02:47.1]} 12. Be3 {[%clk 0:02:25.1]} 12...
Bg6 {[%clk 0:02:42.3]} 13. b4 {[%clk 0:02:24]} 13... Qd8 {[%clk 0:02:36.8]} 14.
Rfd1 {[%clk 0:02:10.9]} 14... Nb6 {[%clk 0:02:35]} 15. Bb3 {[%clk 0:02:10.2]}
15... Nd5 {[%clk 0:02:34.9]} 16. Bxd5 {[%clk 0:02:08.3]} 16... exd5 {[%clk
0:02:35.3]} 17. Ne5 {[%clk 0:02:04.3]} 17... Bd6 {[%clk 0:02:30.7]} 18. Qf3
{[%clk 0:01:59.8]} 18... Be4 {[%clk 0:02:24.6]} 19. Qe2 {[%clk 0:01:50.6]} 19...
f6 {[%clk 0:02:22.3]} 20. Nd3 {[%clk 0:01:47]} 20... Re8 {[%clk 0:02:19.1]} 21.
f3 {[%clk 0:01:44.7]} 21... Bg6 {[%clk 0:02:16.9]} 22. Qf2 {[%clk 0:01:41.7]}
22... Qc7 {[%clk 0:02:15.2]} 23. g3 {[%clk 0:01:41.1]} 23... a5 {[%clk 0:02:07]}
24. a3 {[%clk 0:01:40.4]} 24... axb4 {[%clk 0:02:00]} 25. cxb4 {[%clk
0:01:39.2]} 25... Bxd3 {[%clk 0:01:55.6]} 26. Rxd3 {[%clk 0:01:39.4]} 26... Bxb4
{[%clk 0:01:55.8]} 27. Qb2 {[%clk 0:01:27.9]} 27... Bd6 {[%clk 0:01:54.3]} 28.
Rb3 {[%clk 0:01:27.1]} 28... Re7 {[%clk 0:01:49.7]} 29. Bf2 {[%clk 0:01:23.5]}
29... Rae8 {[%clk 0:01:47.3]} 30. Rb1 {[%clk 0:01:22.7]} 30... b5 {[%clk
0:01:45.9]} 31. Rc1 {[%clk 0:01:17.4]} 31... Re2 {[%clk 0:01:32.3]} 32. Rc2
{[%clk 0:01:17.5]} 32... Rxc2 {[%clk 0:01:30.9]} 33. Qxc2 {[%clk 0:01:18.4]}
33... Qd7 {[%clk 0:01:24.2]} 34. Rc3 {[%clk 0:01:14.8]} 34... Rc8 {[%clk
0:01:15.4]} 35. Qb3 {[%clk 0:01:13.1]} 35... g6 {[%clk 0:01:11.6]} 36. Re3
{[%clk 0:01:04.3]} 36... Kg7 {[%clk 0:01:10.8]} 37. Qd3 {[%clk 0:01:00.4]} 37...
Ra8 {[%clk 0:01:09.5]} 38. Qe2 {[%clk 0:00:43.2]} 38... Rxa3 {[%clk 0:01:07.1]}
39. Re8 {[%clk 0:00:42.9]} 39... Ra7 {[%clk 0:00:53.3]} 40. h4 {[%clk 0:00:29]}
40... b4 {[%clk 0:00:50.3]} 41. h5 {[%clk 0:00:28.4]} 41... Qh3 {[%clk
0:00:46.8]} 42. h6+ {[%clk 0:00:19]} 42... Qxh6 {[%clk 0:00:43.8]} 43. Qb2
{[%clk 0:00:16.5]} 43... Qh3 {[%clk 0:00:38.6]} 44. f4 {[%clk 0:00:16.4]} 44...
Re7 {[%clk 0:00:35.6]} 45. Rxe7+ {[%clk 0:00:16.3]} 45... Bxe7 {[%clk
0:00:35.9]} 46. Qe2 {[%clk 0:00:16]} 46... Qd7 {[%clk 0:00:35.9]} 47. Qa6 {[%clk
0:00:14.2]} 47... Qd6 {[%clk 0:00:32.4]} 48. Qa8 {[%clk 0:00:13.1]} 48... b3
{[%clk 0:00:30.5]} 49. Qb7 {[%clk 0:00:12.3]} 49... Qa3 {[%clk 0:00:30.1]} 50.
Be1 {[%clk 0:00:10.9]} 50... b2 {[%clk 0:00:29.5]} 51. Qb8 {[%clk 0:00:08.4]}
51... Qa1 {[%clk 0:00:27.3]} 52. Kg2 {[%clk 0:00:08.3]} 52... b1=Q {[%clk
0:00:25.1]} 53. Qxb1 {[%clk 0:00:07.8]} 53... Qxb1 {[%clk 0:00:25.1]} 0-1

[Event "Early-Titled-Tuesday-Blitz-January-30-2024"]
[Site "Chess.com"]
[Date "2024.01.30"]
[Round "7"]
[White "SaqoChess_Twitch"]
[Black "DenLaz"]
[Result "1/2-1/2"]
[WhiteElo "2595"]
[BlackElo "3039"]
[TimeControl "180+1"]
[EndTime "9:19:36 PST"]
[Termination "Game drawn - insufficient material"]

1. d4 {[%clk 0:03:00.9]} 1... Nf6 {[%clk 0:03:00.2]} 2. c4 {[%clk 0:03:01.2]}
2... e6 {[%clk 0:03:00.6]} 3. Nc3 {[%clk 0:03:01.8]} 3... Bb4 {[%clk 0:03:00.9]}
4. e3 {[%clk 0:03:02.1]} 4... O-O {[%clk 0:03:01.1]} 5. a3 {[%clk 0:03:02.1]}
5... Bxc3+ {[%clk 0:03:01.1]} 6. bxc3 {[%clk 0:03:03]} 6... Nc6 {[%clk
0:03:00.8]} 7. Bd3 {[%clk 0:03:03.6]} 7... e5 {[%clk 0:03:00.9]} 8. Ne2 {[%clk
0:02:58.6]} 8... e4 {[%clk 0:02:59.8]} 9. Bb1 {[%clk 0:02:58.5]} 9... b6 {[%clk
0:02:59.8]} 10. Ng3 {[%clk 0:02:57.3]} 10... Ba6 {[%clk 0:02:58.8]} 11. Nxe4
{[%clk 0:02:56.9]} 11... Bxc4 {[%clk 0:02:56.9]} 12. Nxf6+ {[%clk 0:02:52.6]}
12... Qxf6 {[%clk 0:02:57.8]} 13. Bd3 {[%clk 0:02:52.5]} 13... Na5 {[%clk
0:02:57.9]} 14. O-O {[%clk 0:02:50.6]} 14... d5 {[%clk 0:02:57.7]} 15. Re1
{[%clk 0:02:47.1]} 15... Rfe8 {[%clk 0:02:57.6]} 16. Bc2 {[%clk 0:02:43.3]}
16... c5 {[%clk 0:02:46.6]} 17. a4 {[%clk 0:02:40.1]} 17... h6 {[%clk
0:02:42.6]} 18. h3 {[%clk 0:02:21.7]} 18... Rac8 {[%clk 0:02:42.2]} 19. Bd2
{[%clk 0:02:20.7]} 19... Nb7 {[%clk 0:02:39.9]} 20. f3 {[%clk 0:02:18.3]} 20...
Re6 {[%clk 0:02:36.8]} 21. Rc1 {[%clk 0:01:53.8]} 21... Rce8 {[%clk 0:02:31.9]}
22. Bb1 {[%clk 0:01:45.5]} 22... Nd6 {[%clk 0:02:26.9]} 23. Qc2 {[%clk 0:01:45]}
23... g6 {[%clk 0:02:26.1]} 24. Kh2 {[%clk 0:01:38]} 24... Qe7 {[%clk 0:02:01]}
25. dxc5 {[%clk 0:01:12.7]} 25... bxc5 {[%clk 0:02:00]} 26. e4 {[%clk
0:01:12.1]} 26... dxe4 {[%clk 0:02:00]} 27. fxe4 {[%clk 0:01:12.3]} 27... Nxe4
{[%clk 0:01:57.7]} 28. Rxe4 {[%clk 0:01:04.5]} 28... Rxe4 {[%clk 0:01:48.8]} 29.
Qxe4 {[%clk 0:01:04.5]} 29... Qxe4 {[%clk 0:01:49.1]} 30. Bxe4 {[%clk
0:01:04.4]} 30... Rxe4 {[%clk 0:01:50]} 31. Bxh6 {[%clk 0:01:05]} 31... Re2
{[%clk 0:01:36.4]} 32. Rd1 {[%clk 0:00:56.6]} 32... Bb3 {[%clk 0:01:34.7]} 33.
Rd8+ {[%clk 0:00:37.5]} 33... Kh7 {[%clk 0:01:34.1]} 34. Bf8 {[%clk 0:00:36.4]}
34... Bxa4 {[%clk 0:01:33.6]} 35. Bxc5 {[%clk 0:00:22.2]} 35... Bc6 {[%clk
0:01:32.8]} 36. Kg3 {[%clk 0:00:22.2]} 36... Rxg2+ {[%clk 0:01:31.6]} 37. Kf4
{[%clk 0:00:21.7]} 37... Re2 {[%clk 0:00:33.3]} 38. Bxa7 {[%clk 0:00:17.6]}
38... Re6 {[%clk 0:00:17.1]} 39. Bd4 {[%clk 0:00:16.7]} 39... f6 {[%clk
0:00:17.4]} 40. Rc8 {[%clk 0:00:15.2]} 40... Be4 {[%clk 0:00:17.3]} 41. Rc7+
{[%clk 0:00:14.5]} 41... Kh6 {[%clk 0:00:17.3]} 42. Bxf6 {[%clk 0:00:13.2]}
42... Rxf6+ {[%clk 0:00:16.8]} 43. Kxe4 {[%clk 0:00:13.6]} 43... Rf1 {[%clk
0:00:17.5]} 44. c4 {[%clk 0:00:12.9]} 44... Rh1 {[%clk 0:00:17.8]} 45. Rc8
{[%clk 0:00:12.4]} 45... Kg7 {[%clk 0:00:17.7]} 46. c5 {[%clk 0:00:12]} 46...
Rxh3 {[%clk 0:00:17.9]} 47. c6 {[%clk 0:00:12.6]} 47... Rc3 {[%clk 0:00:18.2]}
48. Kd4 {[%clk 0:00:12.4]} 48... Rc1 {[%clk 0:00:17.8]} 49. Kd5 {[%clk
0:00:12.9]} 49... g5 {[%clk 0:00:17.3]} 50. Ke5 {[%clk 0:00:12.5]} 50... g4
{[%clk 0:00:16.6]} 51. Kf4 {[%clk 0:00:12.7]} 51... Kf7 {[%clk 0:00:16.9]} 52.
Kxg4 {[%clk 0:00:13]} 52... Ke7 {[%clk 0:00:17.3]} 53. Kf4 {[%clk 0:00:13.3]}
53... Kd6 {[%clk 0:00:18]} 54. Ke4 {[%clk 0:00:13.2]} 54... Rxc6 {[%clk
0:00:17.8]} 55. Rxc6+ {[%clk 0:00:13.9]} 55... Kxc6 {[%clk 0:00:18.7]} 1/2-1/2

[Event "Early-Titled-Tuesday-Blitz-January-30-2024"]
[Site "Chess.com"]
[Date "2024.01.30"]
[Round "7"]
[White "Shodikulov_Jamshid1990"]
[Black "SaiAgni_98"]
[Result "0-1"]
[WhiteElo "2396"]
[BlackElo "2569"]
[TimeControl "180+1"]
[EndTime "9:19:37 PST"]
[Termination "SaiAgni_98 won by resignation"]

1. c4 {[%clk 0:03:00.9]} 1... c5 {[%clk 0:02:58.8]} 2. Nc3 {[%clk 0:03:00.1]}
2... Nc6 {[%clk 0:02:58.5]} 3. g3 {[%clk 0:02:59.3]} 3... e5 {[%clk 0:02:57.2]}
4. Bg2 {[%clk 0:02:59.8]} 4... g6 {[%clk 0:02:57.1]} 5. a3 {[%clk 0:02:58.1]}
5... Bg7 {[%clk 0:02:52.8]} 6. Nf3 {[%clk 0:02:56.6]} 6... Nge7 {[%clk
0:02:47.6]} 7. O-O {[%clk 0:02:55.9]} 7... O-O {[%clk 0:02:46.6]} 8. Rb1 {[%clk
0:02:56]} 8... a5 {[%clk 0:02:45.5]} 9. d3 {[%clk 0:02:52.6]} 9... d6 {[%clk
0:02:44.1]} 10. Ne1 {[%clk 0:02:41.8]} 10... Be6 {[%clk 0:02:43]} 11. Nc2 {[%clk
0:02:40]} 11... Qd7 {[%clk 0:02:41.3]} 12. Bd2 {[%clk 0:02:36.6]} 12... Bh3
{[%clk 0:02:40.5]} 13. e4 {[%clk 0:02:34.4]} 13... Bxg2 {[%clk 0:02:39.5]} 14.
Kxg2 {[%clk 0:02:35.3]} 14... f5 {[%clk 0:02:36.8]} 15. b4 {[%clk 0:02:35.7]}
15... axb4 {[%clk 0:02:35.2]} 16. axb4 {[%clk 0:02:36.6]} 16... Nd4 {[%clk
0:02:26.7]} 17. bxc5 {[%clk 0:02:35.1]} 17... dxc5 {[%clk 0:02:26.8]} 18. Nxd4
{[%clk 0:02:26.9]} 18... exd4 {[%clk 0:02:14]} 19. Nd5 {[%clk 0:02:25.9]} 19...
fxe4 {[%clk 0:02:09.2]} 20. dxe4 {[%clk 0:02:19.5]} 20... Ra2 {[%clk 0:02:04]}
21. Bf4 {[%clk 0:01:57.8]} 21... Nxd5 {[%clk 0:01:49.2]} 22. exd5 {[%clk
0:01:58.7]} 22... Ra3 {[%clk 0:01:23.5]} 23. Rb5 {[%clk 0:01:45.2]} 23... Qf5
{[%clk 0:01:03.3]} 24. Bd6 {[%clk 0:01:13.9]} 24... Rf7 {[%clk 0:00:48.2]} 25.
Bxc5 {[%clk 0:01:12.8]} 25... Qe4+ {[%clk 0:00:40.7]} 26. Kg1 {[%clk 0:01:10.2]}
26... Raf3 {[%clk 0:00:26.4]} 27. Rb6 {[%clk 0:00:53.8]} 27... h5 {[%clk
0:00:25.3]} 28. Re6 {[%clk 0:00:52.5]} 28... Qg4 {[%clk 0:00:23.9]} 29. Qd2
{[%clk 0:00:37]} 29... h4 {[%clk 0:00:18.7]} 30. Bd6 {[%clk 0:00:28]} 30... Kh7
{[%clk 0:00:17.7]} 31. c5 {[%clk 0:00:23.4]} 31... d3 {[%clk 0:00:17.3]} 32. c6
{[%clk 0:00:22.2]} 32... bxc6 {[%clk 0:00:18.2]} 33. dxc6 {[%clk 0:00:23]} 33...
Qxe6 {[%clk 0:00:18.5]} 34. c7 {[%clk 0:00:22.3]} 34... Qxd6 {[%clk 0:00:18.6]}
35. c8=Q {[%clk 0:00:21.9]} 35... hxg3 {[%clk 0:00:18.6]} 36. Qh3+ {[%clk
0:00:21.6]} 36... Kg8 {[%clk 0:00:18.3]} 37. hxg3 {[%clk 0:00:22.4]} 37... Bd4
{[%clk 0:00:11.9]} 38. Kg2 {[%clk 0:00:21.4]} 38... Rxf2+ {[%clk 0:00:11.5]} 39.
Rxf2 {[%clk 0:00:20.6]} 39... Rxf2+ {[%clk 0:00:10.1]} 40. Qxf2 {[%clk
0:00:21.3]} 40... Bxf2 {[%clk 0:00:10.3]} 41. Qc8+ {[%clk 0:00:21.2]} 41... Qf8
{[%clk 0:00:09.6]} 42. Qxf8+ {[%clk 0:00:20.6]} 42... Kxf8 {[%clk 0:00:10.5]}
43. Kxf2 {[%clk 0:00:21.3]} 43... Kf7 {[%clk 0:00:11]} 44. Ke3 {[%clk
0:00:22.1]} 44... Kf6 {[%clk 0:00:11.9]} 45. Kxd3 {[%clk 0:00:22.7]} 45... Kf5
{[%clk 0:00:12.8]} 46. Ke3 {[%clk 0:00:23.2]} 46... Kg4 {[%clk 0:00:13.7]} 47.
Kf2 {[%clk 0:00:23.9]} 47... Kh3 {[%clk 0:00:14.2]} 48. Kf3 {[%clk 0:00:24.6]}
48... g5 {[%clk 0:00:14.9]} 49. Kf2 {[%clk 0:00:24.5]} 49... g4 {[%clk
0:00:15.4]} 50. Kf1 {[%clk 0:00:22.1]} 50... Kxg3 {[%clk 0:00:15.6]} 51. Kg1
{[%clk 0:00:20.7]} 51... Kh3 {[%clk 0:00:14.7]} 52. Kh1 {[%clk 0:00:20.9]} 52...
g3 {[%clk 0:00:15.3]} 53. Kg1 {[%clk 0:00:21.3]} 53... g2 {[%clk 0:00:16.2]} 0-1

[Event "Early-Titled-Tuesday-Blitz-January-30-2024"]
[Site "Chess.com"]
[Date "2024.01.30"]
[Round "7"]
[White "KubaGepard"]
[Black "Nikolakis2014"]
[Result "0-1"]
[WhiteElo "2552"]
[BlackElo "2763"]
[TimeControl "180+1"]
[EndTime "9:19:39 PST"]
[Termination "Nikolakis2014 won by resignation"]

1. d4 {[%clk 0:03:00.9]} 1... Nf6 {[%clk 0:02:55.5]} 2. Nf3 {[%clk 0:03:00.9]}
2... g6 {[%clk 0:02:55.7]} 3. g3 {[%clk 0:03:00.9]} 3... Bg7 {[%clk 0:02:55.9]}
4. Bg2 {[%clk 0:03:01.8]} 4... O-O {[%clk 0:02:56.1]} 5. O-O {[%clk 0:03:02.7]}
5... d6 {[%clk 0:02:56.5]} 6. b3 {[%clk 0:03:03.1]} 6... a5 {[%clk 0:02:53.8]}
7. c4 {[%clk 0:03:01.5]} 7... a4 {[%clk 0:02:52.3]} 8. Bb2 {[%clk 0:02:59.9]}
8... Re8 {[%clk 0:02:47.9]} 9. Nc3 {[%clk 0:02:59.3]} 9... a3 {[%clk 0:02:46.9]}
10. Bc1 {[%clk 0:02:59.5]} 10... Nbd7 {[%clk 0:02:44.7]} 11. Qc2 {[%clk
0:02:50.5]} 11... e5 {[%clk 0:02:42.1]} 12. Rd1 {[%clk 0:02:50.6]} 12... exd4
{[%clk 0:02:30.5]} 13. Nxd4 {[%clk 0:02:49.6]} 13... Nc5 {[%clk 0:02:30.6]} 14.
Rb1 {[%clk 0:02:36.4]} 14... Ng4 {[%clk 0:02:24.4]} 15. b4 {[%clk 0:02:30.3]}
15... Ne6 {[%clk 0:01:58.3]} 16. Nf3 {[%clk 0:02:22.4]} 16... h6 {[%clk
0:01:52.4]} 17. h3 {[%clk 0:02:17.8]} 17... Ne5 {[%clk 0:01:51.4]} 18. Nxe5
{[%clk 0:02:16.4]} 18... Bxe5 {[%clk 0:01:49.9]} 19. Bxh6 {[%clk 0:02:16.2]}
19... Nd4 {[%clk 0:01:48.6]} 20. Qd3 {[%clk 0:02:11.8]} 20... Bf5 {[%clk
0:01:38.9]} 21. e4 {[%clk 0:02:10.9]} 21... Be6 {[%clk 0:01:39.1]} 22. Be3
{[%clk 0:01:56.5]} 22... c5 {[%clk 0:01:37.5]} 23. bxc5 {[%clk 0:01:46.6]} 23...
dxc5 {[%clk 0:01:37.5]} 24. Nd5 {[%clk 0:01:46.9]} 24... Bxd5 {[%clk 0:01:32]}
25. exd5 {[%clk 0:01:41.8]} 25... Qd7 {[%clk 0:01:29.1]} 26. Rb6 {[%clk
0:01:29.7]} 26... Ra6 {[%clk 0:01:26]} 27. Rdb1 {[%clk 0:01:28.1]} 27... Rxb6
{[%clk 0:01:25.5]} 28. Rxb6 {[%clk 0:01:29]} 28... Qc7 {[%clk 0:01:19.9]} 29.
Rb1 {[%clk 0:01:25.5]} 29... Bxg3 {[%clk 0:01:10.4]} 30. Bxd4 {[%clk 0:01:15.8]}
30... Bh2+ {[%clk 0:01:09.5]} 31. Kf1 {[%clk 0:01:15.2]} 31... cxd4 {[%clk
0:01:09.6]} 32. Qxd4 {[%clk 0:01:15.1]} 32... Bd6 {[%clk 0:01:08.3]} 33. Rd1
{[%clk 0:01:09.7]} 33... Rc8 {[%clk 0:01:03.3]} 34. Rc1 {[%clk 0:01:01.5]} 34...
b6 {[%clk 0:01:03.4]} 35. Bf3 {[%clk 0:00:59.4]} 35... Re8 {[%clk 0:01:01.1]}
36. Re1 {[%clk 0:00:56.1]} 36... Rxe1+ {[%clk 0:00:52.9]} 37. Kxe1 {[%clk
0:00:56.4]} 37... Bb4+ {[%clk 0:00:46.8]} 38. Kf1 {[%clk 0:00:53.7]} 38... Bc5
{[%clk 0:00:44.1]} 39. Qe4 {[%clk 0:00:51]} 39... Qh2 {[%clk 0:00:40.6]} 40. Bg2
{[%clk 0:00:50.6]} 40... Qd6 {[%clk 0:00:37.9]} 41. h4 {[%clk 0:00:47.7]} 41...
Qf6 {[%clk 0:00:37.9]} 42. Qc2 {[%clk 0:00:25]} 42... Qxh4 {[%clk 0:00:33.8]}
43. Qd2 {[%clk 0:00:23.6]} 43... Qf6 {[%clk 0:00:32.8]} 44. Be4 {[%clk
0:00:22.1]} 44... Qe5 {[%clk 0:00:29.3]} 45. Bf3 {[%clk 0:00:20.4]} 45... Kg7
{[%clk 0:00:28.5]} 46. Kg2 {[%clk 0:00:20.3]} 46... f5 {[%clk 0:00:28]} 47. Qe2
{[%clk 0:00:20.4]} 47... Qd4 {[%clk 0:00:23.7]} 48. Kf1 {[%clk 0:00:18.1]} 48...
g5 {[%clk 0:00:20.5]} 49. Bh5 {[%clk 0:00:18.2]} 49... g4 {[%clk 0:00:20.1]} 50.
Kg2 {[%clk 0:00:17.5]} 50... Kh6 {[%clk 0:00:19.5]} 51. Be8 {[%clk 0:00:17.4]}
51... Kg5 {[%clk 0:00:19.1]} 52. Bd7 {[%clk 0:00:17.6]} 52... Kf4 {[%clk
0:00:17.3]} 53. Be6 {[%clk 0:00:16.5]} 53... Qb2 {[%clk 0:00:13.8]} 54. Qd3
{[%clk 0:00:14]} 54... Qxf2+ {[%clk 0:00:13]} 0-1